fUSD/lending_fUSD_20260615
["ID","MTS","AMOUNT","RATE_DAILY","PERIOD"]
[425075509,1781461851000,-500.0,0.00015,2]
[425075513,1781461851000,-500.0,0.00015,2]
[425075497,1781461851000,-500.0,0.00015,2]
[425075512,1781461851000,-500.0,0.00015,2]
[425075517,1781461851000,-500.0,0.00015,2]
[425075515,1781461851000,-500.0,0.00015,2]
[425075520,1781461851000,-500.0,0.00015,2]
[425075521,1781461851000,-500.0,0.00015,2]
[425075522,1781461851000,-500.0,0.00015,2]
[425075514,1781461851000,-500.0,0.00015,2]
[425075518,1781461851000,-500.0,0.00015,2]
[425075507,1781461851000,-500.0,0.00015,2]
[425075490,1781461851000,-181.0,0.00015,2]
[425075483,1781461851000,-1189.820637,0.00015,2]
[425075491,1781461851000,-182.0,0.00015,2]
[425075462,1781461851000,-151.0,0.00015,2]
[425075463,1781461851000,-151.0,0.00015,2]
[425075473,1781461851000,-151.0,0.00015,2]
[425075465,1781461851000,-151.0,0.00015,2]
[425075468,1781461851000,-550.2495,0.00015,2]
[425075466,1781461851000,-1100.49899,0.00015,2]
[425075474,1781461851000,-151.0,0.00015,2]
[425075464,1781461851000,-151.0,0.00015,2]
[425075470,1781461851000,-1100.49899,0.00015,2]
[425075471,1781461851000,-151.0,0.00015,2]
[425075467,1781461851000,-550.2495,0.00015,2]
[425075469,1781461851000,-550.24949,0.00015,2]
[425075472,1781461851000,-151.0,0.00015,2]
[425075489,1781461851000,-1189.820637,0.00015,2]
[425075475,1781461851000,-151.0,0.00015,2]
[425075476,1781461851000,-151.0,0.00015,2]
[425075516,1781461851000,-500.0,0.00015,2]
[425075485,1781461851000,-1189.820637,0.00015,2]
[425075479,1781461851000,-151.0,0.00015,2]
[425075478,1781461851000,-151.0,0.00015,2]
[425075480,1781461851000,-151.0,0.00015,2]
[425075481,1781461851000,-151.512407,0.00015,2]
[425075486,1781461851000,-1189.820637,0.00015,2]
[425075482,1781461851000,-1189.820637,0.00015,2]
[425075488,1781461851000,-1189.820637,0.00015,2]
[425075498,1781461851000,-500.0,0.00015,2]
[425075487,1781461851000,-1189.820637,0.00015,2]
[425075495,1781461851000,-500.0,0.00015,2]
[425075477,1781461851000,-151.0,0.00015,2]
[425075484,1781461851000,-1189.820637,0.00015,2]
[425075519,1781461851000,-500.0,0.00015,2]
[425075527,1781461851000,-500.0,0.00015,2]
[425075562,1781461851000,-151.0,0.00015068,2]
[425075560,1781461851000,-151.0,0.00015068,2]
[425075561,1781461851000,-151.0,0.00015068,2]
[425075559,1781461851000,-363.85296522,0.00015065,2]
[425075564,1781461851000,-151.0,0.00015068,2]
[425075563,1781461851000,-151.0,0.00015068,2]
[425075565,1781461851000,-151.0,0.00015068,2]
[425075566,1781461851000,-151.0,0.00015068,2]
[425075567,1781461851000,-181.338967,0.00015068,2]
[425075573,1781461851000,-316.0,0.000151,2]
[425075569,1781461851000,-1401.82224017,0.00015081,2]
[425075568,1781461851000,-1401.82224017,0.00015071,2]
[425075524,1781461851000,-500.0,0.00015,2]
[425075572,1781461851000,-1000.0,0.000151,2]
[425075571,1781461851000,-309.0,0.000151,2]
[425075574,1781461851000,-350.0,0.00015114,3]
[425075580,1781461851000,-350.0,0.00015339,2]
[425075576,1781461851000,-1613.0535,0.00015181,2]
[425075583,1781461851000,-187.1,0.00015477,2]
[425075579,1781461851000,-500.0,0.00015205,2]
[425075582,1781461851000,-350.0,0.00015451,2]
[425075581,1781461851000,-350.0,0.00015407,2]
[425075585,1781461851000,-350.0,0.00015585,2]
[425075575,1781461851000,-289.569682,0.00015157,7]
[425075584,1781461851000,-187.1,0.00015477,2]
[425075578,1781461851000,-2000.0,0.000152,2]
[425075577,1781461851000,-433.0,0.00015192,2]
[425075558,1781461851000,-350.0,0.00015058,2]
[425075557,1781461851000,-1401.82224017,0.00015033,2]
[425075570,1781461851000,-2000.0,0.000151,2]
[425075554,1781461851000,-1401.82224017,0.00015012,2]
[425075555,1781461851000,-1401.82224017,0.00015017,2]
[425075528,1781461851000,-500.0,0.00015,2]
[425075535,1781461851000,-500.0,0.00015,2]
[425075525,1781461851000,-500.0,0.00015,2]
[425075526,1781461851000,-500.0,0.00015,2]
[425075530,1781461851000,-500.0,0.00015,2]
[425075529,1781461851000,-500.0,0.00015,2]
[425075537,1781461851000,-500.0,0.00015,2]
[425075532,1781461851000,-500.0,0.00015,2]
[425075531,1781461851000,-500.0,0.00015,2]
[425075533,1781461851000,-500.0,0.00015,2]
[425075534,1781461851000,-500.0,0.00015,2]
[425075536,1781461851000,-500.0,0.00015,2]
[425075550,1781461851000,-500.0,0.00015,2]
[425075549,1781461851000,-500.0,0.00015,2]
[425075538,1781461851000,-500.0,0.00015,2]
[425075539,1781461851000,-500.0,0.00015,2]
[425075552,1781461851000,-1401.82224017,0.00015005,2]
[425075556,1781461851000,-1401.82224017,0.0001502,2]
[425075553,1781461851000,-1401.82224017,0.00015011,2]
[425075551,1781461851000,-350.0,0.00015002,2]
[425075546,1781461851000,-500.0,0.00015,2]
[425075548,1781461851000,-500.0,0.00015,2]
[425075540,1781461851000,-500.0,0.00015,2]
[425075545,1781461851000,-500.0,0.00015,2]
[425075543,1781461851000,-500.0,0.00015,2]
[425075542,1781461851000,-500.0,0.00015,2]
[425075547,1781461851000,-500.0,0.00015,2]
[425075544,1781461851000,-500.0,0.00015,2]
[425075541,1781461851000,-500.0,0.00015,2]
[425075589,1781461852000,-9.74476493,0.00015794,2]
[425075586,1781461852000,-464.35599543,0.00015669,2]
[425075587,1781461852000,-1672.7364795,0.00015728,2]
[425075591,1781461852000,-329.67531835,0.00015794,2]
[425075588,1781461852000,-350.0,0.0001576,3]
[425075594,1781461852000,-3125.7978238,0.00015794,2]
[425075590,1781461852000,-1130.3367491,0.00015794,2]
[425075595,1781461852000,-1321.35905436,0.00015794,2]
[425075592,1781461852000,-1481.61105294,0.00015794,2]
[425075593,1781461852000,-6223.44849749,0.00015794,2]
[425075620,1781461853000,-465.62,0.00016118,2]
[425075612,1781461853000,-300.0,0.00016,2]
[425075615,1781461853000,-1704.278593,0.000161,2]
[425075619,1781461853000,-4885.01,0.00016116,2]
[425075622,1781461853000,-500.0,0.00016134,2]
[425075621,1781461853000,-2000.0,0.00016134,2]
[425075624,1781461853000,-350.0,0.00016217,2]
[425075623,1781461853000,-350.0,0.00016175,2]
[425075635,1781461853000,-870.719465,0.00016438,2]
[425075625,1781461853000,-628.42,0.00016257,2]
[425075627,1781461853000,-200.0,0.0001634,2]
[425075633,1781461853000,-152.0,0.00016438,2]
[425075626,1781461853000,-1734.62772924,0.00016277,2]
[425075631,1781461853000,-171.031884,0.00016438,2]
[425075632,1781461853000,-152.0,0.00016438,2]
[425075629,1781461853000,-500.0,0.00016416,2]
[425075630,1781461853000,-1346.8,0.00016438,2]
[425075636,1781461853000,-870.719465,0.00016438,2]
[425075634,1781461853000,-870.719465,0.00016438,2]
[425075628,1781461853000,-2000.0,0.00016416,2]
[425075639,1781461853000,-870.719465,0.00016438,2]
[425075613,1781461853000,-431.84226118,0.00016008,2]
[425075597,1781461853000,-368.78409481,0.00015,2]
[425075600,1781461853000,-370.22355901,0.00015,2]
[425075599,1781461853000,-129.77644099,0.00015,2]
[425075596,1781461853000,-163.533506,0.00014072,2]
[425075598,1781461853000,-131.21590519,0.00015,2]
[425075601,1781461853000,-500.0,0.00015,2]
[425075602,1781461853000,-500.0,0.00015,2]
[425075608,1781461853000,-500.0,0.00015,2]
[425075605,1781461853000,-1511.0,0.00015794,2]
[425075607,1781461853000,-655.28295906,0.00015794,2]
[425075606,1781461853000,-344.09,0.00015794,2]
[425075604,1781461853000,-495.05144099,0.00015794,2]
[425075603,1781461853000,-500.0,0.00015,2]
[425075609,1781461853000,-2660.04045805,0.00015794,2]
[425075610,1781461853000,-1885.99,0.00015795,2]
[425075618,1781461853000,-174.72,0.00016107,2]
[425075616,1781461853000,-2665.96470157,0.000161,2]
[425075611,1781461853000,-165.0,0.00016,2]
[425075617,1781461853000,-1423.33244606,0.000161,2]
[425075614,1781461853000,-350.0,0.00016067,2]
[425075641,1781461853000,-870.719465,0.00016438,2]
[425075661,1781461853000,-151.0,0.00016438,2]
[425075638,1781461853000,-870.719465,0.00016438,2]
[425075663,1781461853000,-151.0,0.00016438,2]
[425075667,1781461853000,-151.0,0.00016438,2]
[425075670,1781461853000,-151.0,0.00016438,2]
[425075673,1781461853000,-1820.750344,0.00016438,2]
[425075666,1781461853000,-151.0,0.00016438,2]
[425075665,1781461853000,-151.0,0.00016438,2]
[425075668,1781461853000,-151.0,0.00016438,2]
[425075671,1781461853000,-273.641047,0.00016438,2]
[425075672,1781461853000,-1820.750344,0.00016438,2]
[425075669,1781461853000,-151.0,0.00016438,2]
[425075682,1781461853000,-368.16,0.00016549,2]
[425075681,1781461853000,-736.0,0.00016506,2]
[425075674,1781461853000,-1820.750344,0.00016438,2]
[425075678,1781461853000,-1820.750344,0.00016438,2]
[425075676,1781461853000,-1820.750344,0.00016438,2]
[425075680,1781461853000,-1000.0,0.000165,2]
[425075677,1781461853000,-1820.750344,0.00016438,2]
[425075637,1781461853000,-870.719465,0.00016438,2]
[425075675,1781461853000,-1820.750344,0.00016438,2]
[425075662,1781461853000,-151.0,0.00016438,2]
[425075679,1781461853000,-1820.750344,0.00016438,2]
[425075656,1781461853000,-151.0,0.00016438,2]
[425075664,1781461853000,-151.0,0.00016438,2]
[425075640,1781461853000,-870.719465,0.00016438,2]
[425075644,1781461853000,-151.0,0.00016438,2]
[425075642,1781461853000,-151.0,0.00016438,2]
[425075643,1781461853000,-151.0,0.00016438,2]
[425075647,1781461853000,-151.0,0.00016438,2]
[425075646,1781461853000,-151.0,0.00016438,2]
[425075660,1781461853000,-151.0,0.00016438,2]
[425075649,1781461853000,-151.0,0.00016438,2]
[425075645,1781461853000,-151.0,0.00016438,2]
[425075648,1781461853000,-151.0,0.00016438,2]
[425075651,1781461853000,-151.0,0.00016438,2]
[425075650,1781461853000,-151.0,0.00016438,2]
[425075653,1781461853000,-151.0,0.00016438,2]
[425075657,1781461853000,-151.0,0.00016438,2]
[425075652,1781461853000,-151.0,0.00016438,2]
[425075658,1781461853000,-151.0,0.00016438,2]
[425075655,1781461853000,-151.0,0.00016438,2]
[425075659,1781461853000,-151.0,0.00016438,2]
[425075654,1781461853000,-151.0,0.00016438,2]
[425075728,1781461854000,-300.0,0.00017999,2]
[425075729,1781461854000,-300.0,0.00017999,2]
[425075718,1781461854000,-9136.6472792,0.000178,2]
[425075719,1781461854000,-1242.09489103,0.0001789,2]
[425075717,1781461854000,-10085.7339886,0.000178,2]
[425075720,1781461854000,-1934.38338736,0.00017921,2]
[425075710,1781461854000,-547.0,0.00017679,2]
[425075715,1781461854000,-628.42,0.00017735,2]
[425075721,1781461854000,-1252.0,0.00017923,2]
[425075713,1781461854000,-174.72,0.00017717,2]
[425075716,1781461854000,-776.63593,0.00017767,2]
[425075731,1781461854000,-666.0,0.00017999,2]
[425075740,1781461854000,-10085.7339886,0.00018,2]
[425075722,1781461854000,-300.0,0.00017999,2]
[425075724,1781461854000,-300.0,0.00017999,2]
[425075723,1781461854000,-300.0,0.00017999,2]
[425075726,1781461854000,-300.0,0.00017999,2]
[425075725,1781461854000,-300.0,0.00017999,2]
[425075734,1781461854000,-11464.11399657,0.00018,2]
[425075732,1781461854000,-300.0,0.00017999,2]
[425075733,1781461854000,-300.0,0.00017999,2]
[425075736,1781461854000,-1210.1081115,0.00018,2]
[425075738,1781461854000,-546.7324081,0.00018,2]
[425075737,1781461854000,-350.0,0.00018,2]
[425075712,1781461854000,-403.0,0.000177,5]
[425075730,1781461854000,-300.0,0.00017999,2]
[425075714,1781461854000,-465.62,0.0001773,2]
[425075687,1781461854000,-350.74,0.000169,2]
[425075709,1781461854000,-9136.6472792,0.000176,2]
[425075685,1781461854000,-9136.6472792,0.000168,2]
[425075683,1781461854000,-168.44,0.00016712,2]
[425075684,1781461854000,-10085.7339886,0.000168,2]
[425075686,1781461854000,-1798.80895522,0.00016825,2]
[425075688,1781461854000,-1244.45656713,0.00016936,2]
[425075697,1781461854000,-242.215606,0.00017241,2]
[425075739,1781461854000,-1065.89003313,0.00018,2]
[425075693,1781461854000,-1639.52,0.00017,2]
[425075696,1781461854000,-1885.99,0.00017231,2]
[425075689,1781461854000,-300.0,0.00016999,2]
[425075690,1781461854000,-1166.48685657,0.00017,2]
[425075694,1781461854000,-10085.7339886,0.000171,2]
[425075711,1781461854000,-794.79279959,0.000177,2]
[425075692,1781461854000,-9136.6472792,0.00017,2]
[425075695,1781461854000,-9136.6472792,0.000171,2]
[425075699,1781461854000,-10085.7339886,0.000173,2]
[425075698,1781461854000,-776.635929,0.0001725,2]
[425075700,1781461854000,-9136.6472792,0.000173,2]
[425075701,1781461854000,-370.473353,0.00017323,7]
[425075703,1781461854000,-8987.33852687,0.000174,2]
[425075704,1781461854000,-776.635929,0.00017422,2]
[425075706,1781461854000,-9136.6472792,0.000175,2]
[425075702,1781461854000,-1865.36488656,0.00017372,2]
[425075707,1781461854000,-776.635929,0.00017595,2]
[425075708,1781461854000,-10085.7339886,0.000176,2]
[425075705,1781461854000,-10085.7339886,0.000175,2]
[425075691,1781461854000,-10085.7339886,0.00017,2]
[425075743,1781461854000,-500.0,0.00018192,2]
[425075727,1781461854000,-300.0,0.00017999,2]
[425075735,1781461854000,-111092.75710306,0.00018,2]
[425075771,1781461854000,-377.99479175,0.0001869,2]
[425075773,1781461854000,-546.7324081,0.000187,2]
[425075775,1781461854000,-10085.7339886,0.000187,2]
[425075776,1781461854000,-9720.75904239,0.00018708,2]
[425075778,1781461854000,-500.0,0.00018822,2]
[425075774,1781461854000,-1065.89003313,0.000187,2]
[425075777,1781461854000,-2486.96760325,0.0001871,2]
[425075780,1781461854000,-10000.0,0.00018829,2]
[425075788,1781461854000,-240.0,0.00019,2]
[425075783,1781461854000,-576.07,0.00018913,2]
[425075789,1781461854000,-297.0,0.00019,2]
[425075784,1781461854000,-5247.97175066,0.00019,2]
[425075782,1781461854000,-10085.7339886,0.000189,2]
[425075791,1781461854000,-161.0,0.00019,2]
[425075790,1781461854000,-932.0,0.00019,2]
[425075786,1781461854000,-207.0,0.00019,2]
[425075785,1781461854000,-160.0,0.00019,2]
[425075787,1781461854000,-783.0,0.00019,2]
[425075793,1781461854000,-255.0,0.00019,2]
[425075792,1781461854000,-518.0,0.00019,2]
[425075794,1781461854000,-156.0,0.00019,2]
[425075796,1781461854000,-688.0,0.00019,2]
[425075795,1781461854000,-181.0,0.00019,2]
[425075799,1781461854000,-365.45326147,0.0001901,7]
[425075798,1781461854000,-252.0,0.00019,2]
[425075797,1781461854000,-2166.0,0.00019,2]
[425075742,1781461854000,-1805.81511333,0.000181,2]
[425075772,1781461854000,-666.0,0.0001869,2]
[425075770,1781461854000,-300.0,0.0001869,2]
[425075781,1781461854000,-1065.89003313,0.000189,2]
[425075769,1781461854000,-300.0,0.0001869,2]
[425075741,1781461854000,-9136.6472792,0.00018,2]
[425075768,1781461854000,-300.0,0.0001869,2]
[425075745,1781461854000,-1065.89003313,0.000182,2]
[425075755,1781461854000,-693.64602143,0.000184,2]
[425075746,1781461854000,-10085.7339886,0.000182,2]
[425075744,1781461854000,-546.7324081,0.000182,2]
[425075747,1781461854000,-9136.6472792,0.000182,2]
[425075748,1781461854000,-174.83224661,0.00018266,2]
[425075752,1781461854000,-1065.89003313,0.000184,2]
[425075750,1781461854000,-4613.89673616,0.00018271,2]
[425075751,1781461854000,-546.7324081,0.000184,2]
[425075749,1781461854000,-311.49176684,0.00018267,2]
[425075754,1781461854000,-9136.6472792,0.000184,2]
[425075753,1781461854000,-10085.7339886,0.000184,2]
[425075764,1781461854000,-300.0,0.00018607,2]
[425075761,1781461854000,-10085.7339886,0.000185,2]
[425075758,1781461854000,-192.374653,0.00018489,7]
[425075757,1781461854000,-2005.9555727,0.00018469,2]
[425075767,1781461854000,-300.0,0.0001869,2]
[425075759,1781461854000,-546.7324081,0.000185,2]
[425075762,1781461854000,-1639.52,0.000186,2]
[425075756,1781461854000,-1346.8,0.0001841,2]
[425075760,1781461854000,-1065.89003313,0.000185,2]
[425075763,1781461854000,-300.0,0.00018607,2]
[425075765,1781461854000,-300.0,0.00018607,2]
[425075766,1781461854000,-300.0,0.0001869,2]
[425075779,1781461854000,-10000.0,0.00018828,2]
[425075842,1781461855000,-209.40437684,0.00019016,2]
[425075841,1781461855000,-209.40437684,0.00019016,2]
[425075847,1781461855000,-151.0,0.00019016,2]
[425075840,1781461855000,-1910.18787185,0.00019016,2]
[425075839,1781461855000,-500.0,0.00019016,2]
[425075838,1781461855000,-151.0,0.00019016,2]
[425075833,1781461855000,-1842.0326633,0.00019016,2]
[425075831,1781461855000,-151.0,0.00019016,2]
[425075832,1781461855000,-500.0,0.00019016,2]
[425075835,1781461855000,-151.0,0.00019016,2]
[425075849,1781461855000,-2080.17592889,0.00019016,2]
[425075830,1781461855000,-1776.30922209,0.00019016,2]
[425075836,1781461855000,-151.0,0.00019016,2]
[425075843,1781461855000,-151.0,0.00019016,2]
[425075850,1781461855000,-2054.15682156,0.00019016,2]
[425075844,1781461855000,-500.0,0.00019016,2]
[425075845,1781461855000,-152.0,0.00019016,2]
[425075846,1781461855000,-1980.8648231,0.00019016,2]
[425075863,1781461855000,-151.0,0.00019016,2]
[425075851,1781461855000,-500.0,0.00019016,2]
[425075861,1781461855000,-500.0,0.00019016,2]
[425075862,1781461855000,-151.0,0.00019016,2]
[425075856,1781461855000,-151.0,0.00019016,2]
[425075852,1781461855000,-151.0,0.00019016,2]
[425075854,1781461855000,-152.0,0.00019016,2]
[425075853,1781461855000,-500.0,0.00019016,2]
[425075857,1781461855000,-500.0,0.00019016,2]
[425075834,1781461855000,-500.0,0.00019016,2]
[425075848,1781461855000,-500.0,0.00019016,2]
[425075829,1781461855000,-151.0,0.00019016,2]
[425075802,1781461855000,-1030.0,0.00019016,2]
[425075828,1781461855000,-1712.93078311,0.00019016,2]
[425075855,1781461855000,-151.0,0.00019016,2]
[425075800,1781461855000,-300.0,0.00019016,2]
[425075812,1781461855000,-209.40437684,0.00019016,2]
[425075813,1781461855000,-151.0,0.00019016,2]
[425075801,1781461855000,-300.0,0.00019016,2]
[425075803,1781461855000,-1068.11,0.00019016,2]
[425075810,1781461855000,-1328.27659266,0.00019016,2]
[425075811,1781461855000,-200.0,0.00019016,2]
[425075809,1781461855000,-611.51439807,0.00019016,2]
[425075808,1781461855000,-1280.88388877,0.00019016,2]
[425075804,1781461855000,-1107.63007,0.00019016,2]
[425075805,1781461855000,-1148.61238259,0.00019016,2]
[425075807,1781461855000,-1235.18214925,0.00019016,2]
[425075826,1781461855000,-1651.81367706,0.00019016,2]
[425075806,1781461855000,-1191.11104074,0.00019016,2]
[425075816,1781461855000,-795.46838606,0.00019016,2]
[425075822,1781461855000,-1536.04360648,0.00019016,2]
[425075819,1781461855000,-154.97005817,0.00019016,2]
[425075821,1781461855000,-1481.2378076,0.00019016,2]
[425075823,1781461855000,-151.0,0.00019016,2]
[425075817,1781461855000,-1428.38747117,0.00019016,2]
[425075820,1781461855000,-578.20924308,0.00019016,2]
[425075818,1781461855000,-185.5500428,0.00019016,2]
[425075815,1781461855000,-174.61919141,0.00019016,2]
[425075824,1781461855000,-1592.87721992,0.00019016,2]
[425075825,1781461855000,-151.0,0.00019016,2]
[425075827,1781461855000,-151.0,0.00019016,2]
[425075837,1781461855000,-209.40437684,0.00019016,2]
[425075814,1781461855000,-1377.42282658,0.00019016,2]
[425075860,1781461855000,-151.0,0.00019016,2]
[425075910,1781461855000,-3559.865,0.00019072,2]
[425075859,1781461855000,-721.12765534,0.00019016,2]
[425075895,1781461855000,-500.0,0.00019016,2]
[425075896,1781461855000,-151.0,0.00019016,2]
[425075894,1781461855000,-152.0,0.00019016,2]
[425075899,1781461855000,-151.0,0.00019016,2]
[425075900,1781461855000,-151.0,0.00019016,2]
[425075898,1781461855000,-500.0,0.00019016,2]
[425075897,1781461855000,-152.0,0.00019016,2]
[425075904,1781461855000,-795.46838606,0.00019072,2]
[425075916,1781461855000,-300.0,0.00019177,2]
[425075914,1781461855000,-795.46838606,0.00019126,2]
[425075905,1781461855000,-151.0,0.00019072,2]
[425075907,1781461855000,-383.0,0.00019072,2]
[425075912,1781461855000,-1065.89003313,0.000191,2]
[425075891,1781461855000,-500.0,0.00019016,2]
[425075915,1781461855000,-151.0,0.00019126,2]
[425075909,1781461855000,-1228.039,0.00019072,2]
[425075913,1781461855000,-10085.7339886,0.000191,2]
[425075903,1781461855000,-151.0,0.00019016,2]
[425075906,1781461855000,-1275.0,0.00019072,2]
[425075908,1781461855000,-666.846,0.00019072,2]
[425075917,1781461855000,-3000.0,0.00019178,2]
[425075921,1781461855000,-266.95689245,0.00019178,2]
[425075858,1781461855000,-152.0,0.00019016,2]
[425075919,1781461855000,-250.0,0.00019178,2]
[425075920,1781461855000,-250.0,0.00019178,2]
[425075922,1781461855000,-151.0,0.00019178,2]
[425075923,1781461855000,-151.0,0.00019178,2]
[425075924,1781461855000,-151.0,0.00019178,2]
[425075911,1781461855000,-3644.0,0.00019072,2]
[425075902,1781461855000,-151.0,0.00019016,2]
[425075918,1781461855000,-250.0,0.00019178,2]
[425075892,1781461855000,-151.0,0.00019016,2]
[425075901,1781461855000,-151.0,0.00019016,2]
[425075864,1781461855000,-500.0,0.00019016,2]
[425075866,1781461855000,-151.0,0.00019016,2]
[425075870,1781461855000,-500.0,0.00019016,2]
[425075867,1781461855000,-500.0,0.00019016,2]
[425075872,1781461855000,-151.0,0.00019016,2]
[425075871,1781461855000,-152.0,0.00019016,2]
[425075868,1781461855000,-151.0,0.00019016,2]
[425075874,1781461855000,-151.0,0.00019016,2]
[425075865,1781461855000,-152.0,0.00019016,2]
[425075876,1781461855000,-151.0,0.00019016,2]
[425075873,1781461855000,-500.0,0.00019016,2]
[425075869,1781461855000,-500.0,0.00019016,2]
[425075878,1781461855000,-500.0,0.00019016,2]
[425075875,1781461855000,-500.0,0.00019016,2]
[425075888,1781461855000,-500.0,0.00019016,2]
[425075889,1781461855000,-151.0,0.00019016,2]
[425075890,1781461855000,-152.0,0.00019016,2]
[425075886,1781461855000,-152.0,0.00019016,2]
[425075883,1781461855000,-151.0,0.00019016,2]
[425075885,1781461855000,-151.0,0.00019016,2]
[425075884,1781461855000,-500.0,0.00019016,2]
[425075887,1781461855000,-151.0,0.00019016,2]
[425075882,1781461855000,-152.0,0.00019016,2]
[425075880,1781461855000,-500.0,0.00019016,2]
[425075881,1781461855000,-151.0,0.00019016,2]
[425075879,1781461855000,-151.0,0.00019016,2]
[425075893,1781461855000,-151.0,0.00019016,2]
[425075877,1781461855000,-152.0,0.00019016,2]
[425075957,1781461856000,-300.0,0.00019499,2]
[425075956,1781461856000,-666.0,0.00019499,2]
[425075958,1781461856000,-176856.82550913,0.000195,2]
[425075959,1781461856000,-1065.89003313,0.000195,2]
[425075950,1781461856000,-300.0,0.00019499,2]
[425075955,1781461856000,-300.0,0.00019499,2]
[425075960,1781461856000,-10085.7339886,0.000195,2]
[425075971,1781461856000,-217.15233878,0.00019565,2]
[425075962,1781461856000,-795.46838606,0.00019511,2]
[425075969,1781461856000,-185.5500428,0.00019565,2]
[425075954,1781461856000,-300.0,0.00019499,2]
[425075967,1781461856000,-151.0,0.00019565,2]
[425075970,1781461856000,-154.97005817,0.00019565,2]
[425075963,1781461856000,-151.0,0.00019511,2]
[425075965,1781461856000,-200.0,0.00019565,2]
[425075968,1781461856000,-181.08010149,0.00019565,2]
[425075964,1781461856000,-611.51439807,0.00019565,2]
[425075966,1781461856000,-217.15233878,0.00019565,2]
[425075972,1781461856000,-151.0,0.00019565,2]
[425075974,1781461856000,-2157.14243826,0.00019565,2]
[425075952,1781461856000,-300.0,0.00019499,2]
[425075975,1781461856000,-151.0,0.00019565,2]
[425075961,1781461856000,-192.33375898,0.000195,2]
[425075953,1781461856000,-300.0,0.00019499,2]
[425075938,1781461856000,-10085.7339886,0.000193,2]
[425075949,1781461856000,-151.0,0.00019456,2]
[425075973,1781461856000,-217.15233878,0.00019565,2]
[425075925,1781461856000,-151.0,0.00019178,2]
[425075929,1781461856000,-795.46838606,0.00019181,2]
[425075926,1781461856000,-151.0,0.00019178,2]
[425075928,1781461856000,-20480.61,0.00019178,2]
[425075927,1781461856000,-151.0,0.00019178,2]
[425075931,1781461856000,-2000.0,0.00019218,2]
[425075930,1781461856000,-151.0,0.00019181,2]
[425075932,1781461856000,-500.0,0.00019218,2]
[425075933,1781461856000,-795.46838606,0.00019237,2]
[425075934,1781461856000,-151.0,0.00019237,2]
[425075951,1781461856000,-300.0,0.00019499,2]
[425075935,1781461856000,-795.46838606,0.00019292,2]
[425075936,1781461856000,-151.0,0.00019292,2]
[425075939,1781461856000,-174.72,0.00019328,2]
[425075941,1781461856000,-795.46838606,0.00019346,2]
[425075943,1781461856000,-795.46838606,0.00019402,2]
[425075940,1781461856000,-465.62,0.00019342,2]
[425075942,1781461856000,-151.0,0.00019346,2]
[425075944,1781461856000,-151.0,0.00019402,2]
[425075945,1781461856000,-897.0,0.00019452,2]
[425075946,1781461856000,-717.0,0.00019452,2]
[425075948,1781461856000,-795.46838606,0.00019456,2]
[425075947,1781461856000,-201.0,0.00019452,2]
[425075937,1781461856000,-1065.89003313,0.000193,2]
[425075983,1781461856000,-166.64560032,0.00019703,2]
[425075977,1781461856000,-151.0,0.00019566,2]